[Event "Titled Tuesday Blitz October 31 Early 2023"]
[White "dontcatchmeifyoucant"]
[Black "Skiadopoulos, Nikolaos"]
[BlackFideId "4200772"]
[WhiteElo "2089"]
[BlackElo "1787"]
[Result "0-1"]
[Round "11"]
[TimeControl "180+1"]
[Date "2023.10.31"]
[WhiteClock "0:00:00"]
[BlackClock "0:00:04"]
[Board "128"]

1. e4 {[%clk 0:03:00]}  c5 {[%clk 0:02:57]} 2. Nc3 {[%clk 0:03:00]}  Nc6 {[%clk 0:02:54]} 3. Bb5 {[%clk 0:02:59]}  Na5 {[%clk 0:02:53]} 4. b3 {[%clk 0:02:35]}  a6 {[%clk 0:02:52]} 5. Be2 {[%clk 0:02:27]}  g6 {[%clk 0:02:51]} 6. Bb2 {[%clk 0:02:27]}  Bg7 {[%clk 0:02:51]} 7. f4 {[%clk 0:02:27]}  e6 {[%clk 0:02:50]} 8. e5 {[%clk 0:02:12]}  d5 {[%clk 0:02:46]} 9. exd6 {[%clk 0:02:11]}  Nf6 {[%clk 0:02:39]} 10. Nf3 {[%clk 0:02:05]}  O-O {[%clk 0:02:37]} 11. O-O {[%clk 0:01:59]}  Qxd6 {[%clk 0:02:37]} 12. Ne5 {[%clk 0:01:58]}  Nc6 {[%clk 0:02:31]} 13. Na4 {[%clk 0:01:53]}  b5 {[%clk 0:02:11]} 14. Nb6 {[%clk 0:01:10]}  Rb8 {[%clk 0:02:11]} 15. Nxc8 {[%clk 0:01:08]}  Rbxc8 {[%clk 0:02:11]} 16. Nxc6 {[%clk 0:00:58]}  Rxc6 {[%clk 0:02:06]} 17. Be5 {[%clk 0:00:54]}  Qd7 {[%clk 0:01:56]} 18. a4 {[%clk 0:00:53]}  b4 {[%clk 0:01:48]} 19. Bf3 {[%clk 0:00:48]}  Nd5 {[%clk 0:01:48]} 20. Qe2 {[%clk 0:00:43]}  Bxe5 {[%clk 0:01:39]} 21. Qxe5 {[%clk 0:00:38]}  f6 {[%clk 0:01:36]} 22. Qe4 {[%clk 0:00:39]}  Rd6 {[%clk 0:01:31]} 23. Rae1 {[%clk 0:00:37]}  Rd8 {[%clk 0:01:14]} 24. d3 {[%clk 0:00:37]}  Kf7 {[%clk 0:01:09]} 25. h4 {[%clk 0:00:23]}  Nc3 {[%clk 0:01:08]} 26. Qe3 {[%clk 0:00:16]}  Qc7 {[%clk 0:00:56]} 27. h5 {[%clk 0:00:16]}  Nd5 {[%clk 0:00:55]} 28. hxg6+ {[%clk 0:00:15]}  hxg6 {[%clk 0:00:54]} 29. Bxd5 {[%clk 0:00:11]}  exd5 {[%clk 0:00:50]} 30. Qh3 {[%clk 0:00:12]}  Kg7 {[%clk 0:00:48]} 31. f5 {[%clk 0:00:12]}  g5 {[%clk 0:00:45]} 32. Rf3 {[%clk 0:00:08]}  Rh8 {[%clk 0:00:43]} 33. Qg3 {[%clk 0:00:07]}  Rd7 {[%clk 0:00:43]} 34. Qxc7 {[%clk 0:00:05]}  Rxc7 {[%clk 0:00:43]} 35. Rfe3 {[%clk 0:00:06]}  Kf7 {[%clk 0:00:42]} 36. Re6 {[%clk 0:00:07]}  c4 {[%clk 0:00:39]} 37. dxc4 {[%clk 0:00:05]}  dxc4 {[%clk 0:00:38]} 38. Rxa6 {[%clk 0:00:05]}  cxb3 {[%clk 0:00:38]} 39. cxb3 {[%clk 0:00:06]}  g4 {[%clk 0:00:33]} 40. Rb6 {[%clk 0:00:05]}  Rh5 {[%clk 0:00:32]} 41. Rxb4 {[%clk 0:00:03]}  Rxf5 {[%clk 0:00:31]} 42. Rxg4 {[%clk 0:00:03]}  Rc2 {[%clk 0:00:30]} 43. b4 {[%clk 0:00:02]}  Re5 {[%clk 0:00:25]} 44. a5 {[%clk 0:00:03]}  Rxe1+ {[%clk 0:00:25]} 45. Kh2 {[%clk 0:00:04]}  Ree2 {[%clk 0:00:24]} 46. a6 {[%clk 0:00:03]}  f5 {[%clk 0:00:23]} 47. a7 {[%clk 0:00:03]}  Ra2 {[%clk 0:00:21]} 48. Rg5 {[%clk 0:00:03]}  Rxa7 {[%clk 0:00:20]} 49. Rxf5+ {[%clk 0:00:04]}  Kg6 {[%clk 0:00:21]} 50. Re5 {[%clk 0:00:04]}  Rb2 {[%clk 0:00:21]} 51. b5 {[%clk 0:00:03]}  Rb7 {[%clk 0:00:20]} 52. Re6+ {[%clk 0:00:04]}  Kf5 {[%clk 0:00:20]} 53. Re8 {[%clk 0:00:04]}  R7xb5 {[%clk 0:00:20]} 54. Rf8+ {[%clk 0:00:05]}  Ke4 {[%clk 0:00:20]} 55. Re8+ {[%clk 0:00:05]}  Re5 {[%clk 0:00:20]} 56. Rd8 {[%clk 0:00:05]}  Rg5 {[%clk 0:00:15]} 57. Re8+ {[%clk 0:00:05]}  Kd5 {[%clk 0:00:14]} 58. Rd8+ {[%clk 0:00:05]}  Kc6 {[%clk 0:00:14]} 59. Rc8+ {[%clk 0:00:05]}  Kd7 {[%clk 0:00:14]} 60. Rc3 {[%clk 0:00:04]}  Rgxg2+ {[%clk 0:00:14]} 61. Kh3 {[%clk 0:00:05]}  Rg8 {[%clk 0:00:12]} 62. Rd3+ {[%clk 0:00:04]}  Ke6 {[%clk 0:00:11]} 63. Re3+ {[%clk 0:00:04]}  Kd5 {[%clk 0:00:11]} 64. Re1 {[%clk 0:00:02]}  Rb7 {[%clk 0:00:09]} 65. Rd1+ {[%clk 0:00:02]}  Ke4 {[%clk 0:00:09]} 66. Re1+ {[%clk 0:00:03]}  Kf3 {[%clk 0:00:08]} 67. Rf1+ {[%clk 0:00:03]}  Ke2 {[%clk 0:00:09]} 68. Rf4 {[%clk 0:00:03]}  Rh7+ {[%clk 0:00:08]} 69. Rh4 {[%clk 0:00:03]}  Rxh4+ {[%clk 0:00:08]} 70. Kxh4 {[%clk 0:00:04]}  Kf3 {[%clk 0:00:07]} 71. Kh5 {[%clk 0:00:04]}  Kf4 {[%clk 0:00:07]} 72. Kh6 {[%clk 0:00:05]}  Kf5 {[%clk 0:00:07]} 73. Kh7 {[%clk 0:00:06]}  Rg1 {[%clk 0:00:05]} 74. Kh6 {[%clk 0:00:03]}  Rg2 {[%clk 0:00:04]} 75. Kh7 {[%clk 0:00:03]}  Kf6 {[%clk 0:00:04]} 76. Kh8 {[%clk 0:00:00]}  Kf7 {[%clk 0:00:04]} 0-1


[Site "https://www.chess.com"]

[Event "Titled Tuesday Blitz October 31 Early 2023"]
[White "leonidsh29"]
[Black "Gyulamiryan-koryun"]
[WhiteElo "2041"]
[BlackElo "1907"]
[Result "1/2-1/2"]
[Round "11"]
[TimeControl "180+1"]
[Date "2023.10.31"]
[WhiteClock "0:00:23"]
[BlackClock "0:01:21"]
[Board "129"]

1. d4 {[%clk 0:02:55]}  Nf6 {[%clk 0:02:59]} 2. c4 {[%clk 0:02:50]}  c5 {[%clk 0:02:58]} 3. Nf3 {[%clk 0:02:48]}  g6 {[%clk 0:02:57]} 4. dxc5 {[%clk 0:02:45]}  e6 {[%clk 0:02:57]} 5. g3 {[%clk 0:02:43]}  Bxc5 {[%clk 0:02:56]} 6. Bg2 {[%clk 0:02:42]}  O-O {[%clk 0:02:56]} 7. O-O {[%clk 0:02:41]}  Nc6 {[%clk 0:02:55]} 8. a3 {[%clk 0:02:39]}  a5 {[%clk 0:02:53]} 9. Nc3 {[%clk 0:02:38]}  Rb8 {[%clk 0:02:43]} 10. Bg5 {[%clk 0:02:36]}  Be7 {[%clk 0:02:38]} 11. Qd2 {[%clk 0:02:35]}  Re8 {[%clk 0:02:37]} 12. Rfd1 {[%clk 0:02:33]}  d6 {[%clk 0:02:34]} 13. Nd4 {[%clk 0:02:18]}  Ng4 {[%clk 0:02:24]} 14. Bxe7 {[%clk 0:01:39]}  Nxe7 {[%clk 0:02:23]} 15. Ndb5 {[%clk 0:01:36]}  Qb6 {[%clk 0:02:20]} 16. Qf4 {[%clk 0:01:27]}  e5 {[%clk 0:02:18]} 17. Qf3 {[%clk 0:01:16]}  f5 {[%clk 0:02:10]} 18. Rxd6 {[%clk 0:01:10]}  Qc5 {[%clk 0:02:09]} 19. h3 {[%clk 0:00:54]}  e4 {[%clk 0:02:00]} 20. Qf4 {[%clk 0:00:49]}  Nf6 {[%clk 0:01:59]} 21. Rxf6 {[%clk 0:00:47]}  Qxc4 {[%clk 0:01:57]} 22. Qxb8 {[%clk 0:00:38]}  Bd7 {[%clk 0:01:47]} 23. Qd6 {[%clk 0:00:37]}  Bxb5 {[%clk 0:01:45]} 24. Nxb5 {[%clk 0:00:36]}  Qxb5 {[%clk 0:01:45]} 25. Re6 {[%clk 0:00:34]}  Kf7 {[%clk 0:01:36]} 26. Rd1 {[%clk 0:00:32]}  Qxe2 {[%clk 0:01:35]} 27. Qe5 {[%clk 0:00:28]}  Qxd1+ {[%clk 0:01:34]} 28. Kh2 {[%clk 0:00:27]}  Qd7 {[%clk 0:01:25]} 29. Qf6+ {[%clk 0:00:26]}  Kg8 {[%clk 0:01:23]} 30. Rd6 {[%clk 0:00:25]}  Qc7 {[%clk 0:01:21]} 31. Re6 {[%clk 0:00:24]}  Qd7 {[%clk 0:01:21]} 32. Rd6 {[%clk 0:00:23]}  Qc7 {[%clk 0:01:21]} 33. Re6 {[%clk 0:00:23]}  Qd7 {[%clk 0:01:21]} 1/2-1/2